{"text_format":"1","workbook":"xlsx","n_sheets":6,"sheets":["Sheet1","Feb Report","Employees","UDF","Macros","Event Handling"],"not_rendered":{"charts":1,"images":0,"macros":1,"external_links":0,"defined_names":4,"comments":0,"pivot_tables":0},"unopened":[],"bounds":{"document_bytes":16777216,"sheet_cells":100000,"rows_first":2000,"rows_last":500,"rows_between":2000,"halvings":0,"cell_chars":16384,"cell_head_chars":4096},"cells_cut":0,"cells_raw":0,"read":"whole","date_system":"1900"}

{"sheet":"Sheet1","index":0,"n_rows":2,"n_cols":1,"rows_kept":2,"cut":false,"hidden":false,"merged":[]}
[4567]
[9134]

{"sheet":"Feb Report","index":1,"n_rows":13,"n_cols":7,"rows_kept":13,"cut":false,"hidden":false,"merged":[]}
[7777,null,123.45]
[]
[]
[]
[null,null,"ABC",null,"ZZZ"]
[null,111]
[]
[]
[]
[null,"D24",null,"D24","Musang King","Tekka","XO"]
[null,"Musang King"]
[null,"Tekka"]
[null,"XO"]

{"sheet":"Employees","index":2,"n_rows":15,"n_cols":12,"rows_kept":15,"cut":false,"hidden":false,"merged":[]}
[null,null,null,null,null,null,"sa"]
[null,"sa",null,"as",null,null,null,"dfs"]
[]
[null,null,null,null,null,null,null,null,"dfsfs"]
[]
[null,null,null,"ID","Name","Gender","Salary","Department"]
[null,null,null,1001,"Ali","Male",5000,"IT",null,null,null,"fsdfs"]
[null,null,null,1003,"Abu","Male",4500,"HR"]
[null,null,null,1004,"Ah Chong","Male",3000,"HR"]
[null,null,null,1005,"Aminah","Female",5500,"SA"]
[]
[]
[null,null,null,null,null,null,null,null,null,"sfff"]
[null,null,"sa"]
[null,null,null,null,null,null,"sada"]

{"sheet":"UDF","index":3,"n_rows":37,"n_cols":15,"rows_kept":37,"cut":false,"hidden":false,"merged":[]}
[]
[]
[]
[null,null,"x","f(x)"]
[null,null,-5,{"$f":"f(C5)","v":46}]
[null,null,-4,{"$f":"f(C6)","v":24}]
[null,null,-3,{"$f":"f(C7)","v":8}]
[null,null,-2,{"$f":"f(C8)","v":-2}]
[null,null,-1,{"$f":"f(C9)","v":-6}]
[null,null,0,{"$f":"f(C10)","v":-4}]
[null,null,1,{"$f":"f(C11)","v":4}]
[null,null,2,{"$f":"f(C12)","v":18}]
[null,null,3,{"$f":"f(C13)","v":38}]
[null,null,4,{"$f":"f(C14)","v":64}]
[null,null,5,{"$f":"f(C15)","v":96}]
[null,null,6,{"$f":"f(C16)","v":134}]
[null,null,7,{"$f":"f(C17)","v":178}]
[null,null,8,{"$f":"f(C18)","v":228}]
[null,null,9,{"$f":"f(C19)","v":284}]
[null,null,10,{"$f":"f(C20)","v":346}]
[]
[null,null,null,null,null,1,2,3,4,5,6,7,8,9,10]
[null,null,null,null,null,{"$f":"IF(IsPrime(F22),\"Prime\",\"\")","v":""},{"$f":"IF(IsPrime(G22),\"Prime\",\"\")","v":"Prime"},{"$f":"IF(IsPrime(H22),\"Prime\",\"\")","v":"Prime"},{"$f":"IF(IsPrime(I22),\"Prime\",\"\")","v":""},{"$f":"IF(IsPrime(J22),\"Prime\",\"\")","v":"Prime"},{"$f":"IF(IsPrime(K22),\"Prime\",\"\")","v":""},{"$f":"IF(IsPrime(L22),\"Prime\",\"\")","v":"Prime"},{"$f":"IF(IsPrime(M22),\"Prime\",\"\")","v":""},{"$f":"IF(IsPrime(N22),\"Prime\",\"\")","v":""},{"$f":"IF(IsPrime(O22),\"Prime\",\"\")","v":""}]
[]
[]
[null,"TERMS","Abbreviation"]
[null,"Information Technology",{"$f":"Abbreviation(B27)","v":"IT"}]
[null,"    Visual Basic  for Application    ",{"$f":"Abbreviation(B28)","v":"VBA"},null,null,1.1000000000000001]
[null,"Object Linking & Embedding",{"$f":"Abbreviation(B29)","v":"OLE"},null,null,"Hello",4]
[null,"Leng Chee Kong",{"$f":"Abbreviation(B30)","v":"LCK"},null,null,0,3]
[null,"Technology Park Malaysia",{"$f":"Abbreviation(B31)","v":"TPM"},null,null,null,5,null,null,null,100]
[null,"Timbalan Perdana Menteri",{"$f":"Abbreviation(B32)","v":"TPM"},null,null,12]
[null,null,null,null,null,null,null,null,1,2,3]
[]
[]
[null,null,null,null,null,null,{"$f":"SUM(F28:G32,I33:K33,K31,1000)","v":1131.0999999999999},{"$f":"_xlfn.FORMULATEXT(G36)","v":"=SUM(F28:G32,I33:K33,K31,1000)"}]
[null,null,null,null,null,null,{"$f":"MySUM(F28:G32,I33:K33,K31,1000)","v":1131.0999999999999},{"$f":"_xlfn.FORMULATEXT(G37)","v":"=MySUM(F28:G32,I33:K33,K31,1000)"}]

{"sheet":"Macros","index":4,"n_rows":8,"n_cols":2,"rows_kept":8,"cut":false,"hidden":false,"merged":[]}
[]
[]
[null,"Client"]
["TONG sAm PAh","TONG sAm PAh"]
["Low SHI fun","Low SHI fun"]
["LOW mee","LOW mee"]
["YONG TAU fOO","YONG TAU fOO"]
["Lee CHeE KanG","Lee CHeE KanG"]

{"sheet":"Event Handling","index":5,"n_rows":14,"n_cols":9,"rows_kept":14,"cut":false,"hidden":false,"merged":[]}
[]
[]
[null,"User Name:"]
[null,null,null,null,null,22,58,36,88]
[null,null,null,null,null,48,19,68,75]
[null,null,null,null,null,61,78,16,81]
["Odd",null,null,null,null,20,96,7,6]
["Even",null,null,null,null,79,38,46,12]
["Prime",null,null,null,null,12,17,5,71]
[null,null,null,null,null,53,56,22,47]
[null,null,null,null,null,75,75,40,90]
[null,null,null,null,null,75,9,63,71]
[null,null,null,null,null,2,43,40,28]
[null,null,null,null,null,99,80,70,42]